fUSD/lending_fUSD_20240117
["ID","MTS","AMOUNT","RATE_DAILY","PERIOD"]
[311893687,1705489909574,-824.35,0.00024109,2]
[311893688,1705489909583,-600.0,0.00024109,2]
[311893689,1705489909592,-500.0,0.00024109,2]
[311893690,1705489909601,-583.98,0.00024109,2]
[311893691,1705489909610,-858.82,0.00024109,2]
[311893692,1705489909619,-500.0,0.00024109,2]
[311893693,1705489909629,-678.81,0.00024109,2]
[311893694,1705489909638,-924.3,0.00024109,2]
[311893695,1705489909647,-683.06,0.00024109,2]
[311893696,1705489909656,-500.0,0.00024109,2]
[311893697,1705489909665,-762.3,0.00024109,2]
[311893698,1705489909674,-500.0,0.00024109,2]
[311893699,1705489909683,-500.0,0.00024109,2]
[311893700,1705489909692,-869.48,0.00024109,2]
[311893701,1705489909702,-726.09,0.00024109,2]
[311893702,1705489909711,-500.0,0.00024109,2]
[311893703,1705489909720,-500.0,0.00024109,2]
[311893704,1705489909730,-616.12768029,0.00024109,2]
[311893705,1705489909739,-636.58,0.00024109,2]
[311893706,1705489909748,-500.0,0.00024109,2]
[311893707,1705489909758,-888.84,0.00024109,2]
[311893708,1705489909767,-681.16,0.00024109,2]
[311893709,1705489909777,-1114.57,0.00024109,2]
[311893710,1705489909786,-986.98,0.00024109,2]
[311893711,1705489909796,-500.0,0.00024109,2]
[311893712,1705489909805,-560.75,0.00024109,2]
[311893713,1705489909815,-1015.76,0.00024109,2]
[311893714,1705489909824,-818.15,0.00024109,2]
[311893715,1705489909833,-924.47,0.00024109,2]
[311893716,1705489909843,-565.32,0.00024109,2]
[311893717,1705489909853,-778.03,0.00024109,2]
[311893718,1705489909862,-938.79,0.00024109,2]
[311893719,1705489909872,-685.24,0.00024109,2]
[311893720,1705489909881,-1126.57,0.00024109,2]
[311893721,1705489909890,-1529.03,0.00024109,2]
[311893722,1705489909899,-842.83,0.00024109,2]
[311893723,1705489909908,-677.6,0.00024109,2]
[311893724,1705489909918,-500.0,0.00024109,2]
[311893725,1705489909927,-824.64,0.00024109,2]
[311893726,1705489909936,-1113.11,0.00024109,2]
[311893727,1705489909946,-1539.23,0.00024109,2]
[311893728,1705489909956,-485.33287375,0.00024109,2]
[311893729,1705489909965,-253.5200125,0.00024109,2]
[311893730,1705489909975,-802.8,0.00024109,2]
[311893731,1705489909984,-1060.88,0.00024109,2]
[311893732,1705489909993,-509.96,0.00024109,2]
[311893733,1705489910003,-620.77,0.00024109,2]
[311893734,1705489910012,-500.0,0.00024109,2]
[311893735,1705489910021,-500.0,0.00024109,2]
[311893736,1705489910030,-1111.84,0.00024109,2]
[311893737,1705489910040,-500.0,0.00024109,2]
[311893738,1705489910049,-797.2,0.00024109,2]
[311893739,1705489910059,-554.16,0.00024109,2]
[311893740,1705489910069,-814.02,0.00024109,2]
[311893741,1705489910079,-653.02,0.00024109,2]
[311893742,1705489910088,-500.0,0.00024109,2]
[311893743,1705489910097,-728.98,0.00024109,2]
[311893744,1705489910107,-608.56,0.00024109,2]
[311893745,1705489910116,-500.0,0.00024109,2]
[311893746,1705489910125,-500.0,0.00024109,2]
[311893747,1705489910135,-500.0,0.00024109,2]
[311893748,1705489910144,-1117.37,0.00024109,2]
[311893749,1705489910154,-500.0,0.00024109,2]
[311893750,1705489910163,-786.84,0.00024109,2]
[311893751,1705489910174,-644.84,0.00024109,2]
[311893752,1705489910183,-865.83,0.00024109,2]
[311893753,1705489910192,-500.0,0.00024109,2]
[311893754,1705489910202,-500.0,0.00024109,2]
[311893755,1705489910212,-985.83,0.00024109,2]
[311893756,1705489910221,-645.46,0.00024109,2]
[311893757,1705489910230,-500.0,0.00024109,2]
[311893758,1705489910240,-654.2,0.00024109,2]
[311893759,1705489910249,-671.37,0.00024109,2]
[311893760,1705489910259,-500.0,0.00024109,2]
[311893761,1705489910268,-500.0,0.00024109,2]
[311893762,1705489910278,-520.88013237,0.00024109,2]
[311893763,1705489910288,-500.0,0.00024109,2]
[311893764,1705489910297,-677.29,0.00024109,2]
[311893765,1705489910307,-859.76,0.00024109,2]
[311893766,1705489910316,-679.83,0.00024109,2]
[311893767,1705489910326,-191.49626592,0.00024109,2]
[311893768,1705489910335,-812.38,0.00024109,2]
[311893769,1705489910347,-529.77,0.00024109,2]
[311893770,1705489910357,-500.0,0.00024109,2]
[311893771,1705489910367,-500.0,0.00024109,2]
[311893772,1705489910376,-905.75,0.00024109,2]
[311893773,1705489910386,-597.1,0.00024109,2]
[311893774,1705489910396,-500.0,0.00024109,2]
[311893775,1705489910406,-500.0,0.00024109,2]
[311893776,1705489910416,-976.89,0.00024109,2]
[311893777,1705489910425,-500.0,0.00024109,2]
[311893778,1705489910436,-921.81,0.00024109,2]
[311893779,1705489910446,-801.58,0.00024109,2]
[311893780,1705489910455,-1318.24,0.00024109,2]
[311893781,1705489910464,-565.85,0.00024109,2]
[311893782,1705489910473,-500.0,0.00024109,2]
[311893783,1705489910482,-761.53,0.00024109,2]
[311893784,1705489910491,-500.0,0.00024109,2]
[311893785,1705489910500,-500.0,0.00024109,2]
[311893786,1705489910509,-903.46,0.00024109,2]
[311893787,1705489910519,-638.67,0.00024109,2]
[311893788,1705489910528,-500.0,0.00024109,2]
[311893789,1705489910537,-689.33,0.00024109,2]
[311893790,1705489910546,-500.0,0.00024109,2]
[311893791,1705489910557,-500.0,0.00024109,2]
[311893792,1705489910566,-642.35,0.00024109,2]
[311893793,1705489910574,-1001.32,0.00024109,2]
[311893794,1705489910583,-500.0,0.00024109,2]
[311893795,1705489910593,-623.34,0.00024109,2]
[311893796,1705489910602,-1127.94,0.00024109,2]
[311893797,1705489910611,-500.0,0.00024109,2]
[311893798,1705489910620,-893.53,0.00024109,2]
[311893799,1705489910630,-970.35,0.00024109,2]
[311893800,1705489910639,-703.72,0.00024109,2]
[311893801,1705489910649,-500.0,0.00024109,2]
[311893802,1705489910658,-449.05354716,0.00024109,2]
[311893803,1705489910668,-877.36,0.00024109,2]
[311893804,1705489910677,-500.0,0.00024109,2]
[311893805,1705489910686,-1113.03,0.00024109,2]
[311893806,1705489910696,-1009.59,0.00024109,2]
[311893807,1705489910705,-671.58,0.00024109,2]
[311893808,1705489910714,-645.55,0.00024109,2]
[311893809,1705489910723,-500.0,0.00024109,2]
[311893810,1705489910732,-519.72,0.00024109,2]
[311893811,1705489910742,-832.3,0.00024109,2]
[311893812,1705489910752,-509.1,0.00024109,2]
[311893813,1705489910761,-500.0,0.00024109,2]
[311893814,1705489910771,-556.75,0.00024109,2]
[311893815,1705489910780,-500.0,0.00024109,2]
[311893816,1705489910790,-919.94,0.00024109,2]
[311893817,1705489910799,-574.45,0.00024109,2]
[311893818,1705489910811,-730.7,0.00024109,2]
[311893819,1705489910820,-1564.11,0.00024109,2]
[311893820,1705489910829,-665.72,0.00024109,2]
[311893821,1705489910839,-1972.35,0.00024109,2]
[311893822,1705489910848,-753.37,0.00024109,2]
[311893823,1705489910858,-819.9,0.00024109,2]
[311893824,1705489910868,-1330.15,0.00024109,2]
[311893825,1705489910877,-500.0,0.00024109,2]
[311893826,1705489910886,-1961.2,0.00024109,2]
[311893827,1705489910896,-924.92,0.00024109,2]
[311893828,1705489910906,-1342.87,0.00024109,2]
[311893829,1705489910915,-500.0,0.00024109,2]
[311893830,1705489910925,-516.6,0.00024109,2]
[311893831,1705489910934,-966.0,0.00024109,2]
[311893832,1705489910944,-1214.22,0.00024109,2]
[311893833,1705489910954,-872.31,0.00024109,2]
[311893834,1705489910964,-500.0,0.00024109,2]
[311893835,1705489910973,-500.0,0.00024109,2]
[311893836,1705489910983,-748.35,0.00024109,2]
[311893837,1705489910992,-500.0,0.00024109,2]
[311893838,1705489911002,-937.16,0.00024109,2]
[311893839,1705489911011,-799.25,0.00024109,2]
[311893840,1705489911021,-628.65,0.00024109,2]
[311893841,1705489911031,-500.0,0.00024109,2]
[311893842,1705489911041,-616.54,0.00024109,2]
[311893843,1705489911051,-500.0,0.00024109,2]
[311893844,1705489911062,-717.16,0.00024109,2]
[311893845,1705489911072,-500.0,0.00024109,2]
[311893846,1705489911081,-500.0,0.00024109,2]
[311893847,1705489911091,-500.0,0.00024109,2]
[311893848,1705489911100,-707.9,0.00024109,2]
[311893849,1705489911110,-2202.67,0.00024109,2]
[311893850,1705489911119,-994.43,0.00024109,2]
[311893851,1705489911129,-500.0,0.00024109,2]
[311893852,1705489911138,-1314.57,0.00024109,2]
[311893853,1705489911148,-261.29163194,0.00024109,2]
[311893854,1705489911157,-700.88,0.00024109,2]
[311893855,1705489911167,-747.11,0.00024109,2]
[311893856,1705489911176,-1247.23,0.00024109,2]
[311893857,1705489911186,-500.0,0.00024109,2]
[311893858,1705489911196,-500.0,0.00024109,2]
[311893859,1705489911205,-500.0,0.00024109,2]
[311893860,1705489911215,-1107.65,0.00024109,2]
[311893861,1705489911225,-940.75,0.00024109,2]
[311893862,1705489911234,-1113.86,0.00024109,2]
[311893863,1705489911244,-500.0,0.00024109,2]
[311893864,1705489911254,-1068.04,0.00024109,2]
[311893865,1705489911264,-591.69,0.00024109,2]
[311893866,1705489911274,-528.33596488,0.00024109,2]
[311893867,1705489911284,-500.0,0.00024109,2]
[311893868,1705489911293,-514.52,0.00024109,2]
[311893869,1705489911304,-1801.96,0.00024109,2]
[311893870,1705489911315,-573.65529684,0.00024109,2]
[311893871,1705489911325,-1119.07,0.00024109,2]
[311893872,1705489911335,-2470.72,0.00024109,2]
[311893873,1705489911346,-500.0,0.00024109,2]
[311893874,1705489911357,-500.0,0.00024109,2]
[311893875,1705489911368,-500.0,0.00024109,2]
[311893876,1705489911378,-524.15,0.00024109,2]
[311893877,1705489911387,-904.79,0.00024109,2]
[311893878,1705489911398,-510.6,0.00024109,2]
[311893879,1705489911407,-1190.34,0.00024109,2]
[311893880,1705489911417,-576.31,0.00024109,2]
[311893881,1705489911427,-764.68,0.00024109,2]
[311893882,1705489911439,-1052.25,0.00024109,2]
[311893883,1705489911449,-636.43,0.00024109,2]
[311893884,1705489911458,-670.55,0.00024109,2]
[311893885,1705489911468,-1264.48,0.00024109,2]
[311893886,1705489911478,-500.0,0.00024109,2]
[311893887,1705489911488,-814.85,0.00024109,2]
[311893888,1705489911499,-500.0,0.00024109,2]
[311893889,1705489911508,-500.0,0.00024109,2]
[311893890,1705489911518,-544.71,0.00024109,2]
[311893891,1705489911528,-1206.43,0.00024109,2]
[311893892,1705489911538,-1198.01,0.00024109,2]
[311893893,1705489911547,-500.0,0.00024109,2]
[311893894,1705489911557,-500.0,0.00024109,2]
[311893895,1705489911567,-1043.84,0.00024109,2]
[311893896,1705489911577,-1304.35,0.00024109,2]
[311893897,1705489911587,-1069.27,0.00024109,2]
[311893898,1705489911597,-1087.69,0.00024109,2]
[311893899,1705489911606,-962.26,0.00024109,2]
[311893900,1705489911616,-500.0,0.00024109,2]
[311893901,1705489911626,-500.0,0.00024109,2]
[311893902,1705489911636,-516.2,0.00024109,2]
[311893903,1705489911645,-1632.67,0.00024109,2]
[311893904,1705489911655,-500.0,0.00024109,2]
[311893905,1705489911664,-500.0,0.00024109,2]
[311893906,1705489911674,-939.16,0.00024109,2]
[311893907,1705489911684,-918.4,0.00024109,2]
[311893908,1705489911694,-995.2,0.00024109,2]
[311893909,1705489911703,-500.0,0.00024109,2]
[311893910,1705489911713,-1008.57,0.00024109,2]
[311893911,1705489911723,-500.0,0.00024109,2]
[311893912,1705489911733,-500.0,0.00024109,2]
[311893913,1705489911743,-1029.51,0.00024109,2]
[311893914,1705489911753,-500.0,0.00024109,2]
[311893915,1705489911763,-500.0,0.00024109,2]
[311893916,1705489911772,-500.0,0.00024109,2]
[311893917,1705489911782,-1060.73,0.00024109,2]
[311893918,1705489911793,-636.13,0.00024109,2]
[311893919,1705489911802,-500.0,0.00024109,2]
[311893920,1705489911814,-702.02,0.00024109,2]
[311893921,1705489911824,-594.97,0.00024109,2]
[311893922,1705489911835,-701.5,0.00024109,2]
[311893923,1705489911845,-1038.32,0.00024109,2]
[311893924,1705489911855,-572.4,0.00024109,2]
[311893925,1705489911865,-3550.63,0.00024109,2]
[311893926,1705489911874,-982.96,0.00024109,2]
[311893927,1705489911886,-500.0,0.00024109,2]
[311893928,1705489911896,-500.0,0.00024109,2]
[311893929,1705489911906,-579.93,0.00024109,2]
[311893930,1705489911917,-924.4,0.00024109,2]
[311893931,1705489911928,-500.0,0.00024109,2]
[311893932,1705489911938,-578.12,0.00024109,2]
[311893933,1705489911948,-500.0,0.00024109,2]
[311893934,1705489911957,-885.89,0.00024109,2]
[311893935,1705489911967,-694.35,0.00024109,2]
[311893936,1705489911978,-711.56,0.00024109,2]
[311893937,1705489911988,-1404.62,0.00024109,2]
[311893938,1705489911998,-500.0,0.00024109,2]
[311893939,1705489912009,-635.43,0.00024109,2]
[311893940,1705489912019,-1174.22,0.00024109,2]
[311893941,1705489912029,-1235.63,0.00024109,2]
[311893942,1705489912039,-915.13,0.00024109,2]
[311893943,1705489912049,-701.7,0.00024109,2]
[311893944,1705489912059,-172.3546862,0.00024109,2]
[311893945,1705489912069,-500.0,0.00024109,2]
[311893946,1705489912079,-2849.83,0.00024109,2]
[311893947,1705489912089,-544.59,0.00024109,2]
[311893948,1705489912098,-1964.36,0.00024109,2]
[311893949,1705489912109,-500.0,0.00024109,2]
[311893950,1705489912119,-500.0,0.00024109,2]
[311893951,1705489912129,-2896.5,0.00024109,2]
[311893952,1705489912138,-683.02,0.00024109,2]
[311893953,1705489912149,-1968.52,0.00024109,2]
[311893954,1705489912159,-1342.01,0.00024109,2]
[311893955,1705489912169,-675.72,0.00024109,2]
[311893956,1705489912180,-331.59770741,0.00024109,2]
[311893957,1705489912190,-1029.41,0.00024109,2]
[311893958,1705489912201,-1548.58,0.00024109,2]
[311893959,1705489912211,-500.0,0.00024109,2]
[311893960,1705489912222,-500.0,0.00024109,2]
[311893961,1705489912232,-655.65,0.00024109,2]
[311893962,1705489912242,-3528.9,0.00024109,2]
[311893963,1705489912252,-500.0,0.00024109,2]
[311893964,1705489912261,-550.17,0.00024109,2]
[311893965,1705489912271,-530.48,0.00024109,2]
[311893966,1705489912281,-1274.2,0.00024109,2]
[311893967,1705489912291,-500.0,0.00024109,2]
[311893968,1705489912301,-1478.93,0.00024109,2]
[311893969,1705489912312,-826.31,0.00024109,2]
[311893970,1705489912321,-500.0,0.00024109,2]
[311893971,1705489912331,-710.03,0.00024109,2]
[311893972,1705489912341,-8305.92,0.00024109,2]
[311893973,1705489912355,-3468.63,0.00024109,2]
[311893974,1705489912364,-688.83,0.00024109,2]
[311893975,1705489912374,-13840.01,0.00024109,2]
[311893976,1705489912384,-598.69,0.00024109,2]
[311893977,1705489912394,-566.04,0.00024109,2]
[311893978,1705489912404,-330.45,0.00024109,2]
[311893979,1705489912413,-611.72,0.00024109,2]
[311893980,1705489912423,-678.15,0.00024109,2]
[311893981,1705489912434,-500.0,0.00024109,2]
[311893982,1705489912443,-6007.21,0.00024109,2]
[311893983,1705489912454,-11260.59,0.00024109,2]
[311893984,1705489912465,-576.52,0.00024109,2]
[311893985,1705489912474,-537.26,0.00024109,2]
[311893986,1705489912484,-839.94,0.00024109,2]
[311893987,1705489912493,-9043.74,0.00024109,2]
[311893988,1705489912502,-500.0,0.00024109,2]
[311893989,1705489912513,-2267.53,0.00024109,2]
[311893990,1705489912523,-785.85,0.00024109,2]
[311893991,1705489912533,-2426.8,0.00024109,2]
[311893992,1705489912543,-500.0,0.00024109,2]
[311893993,1705489912553,-1153.46,0.00024109,2]
[311893994,1705489912564,-5019.46,0.00024109,2]
[311893995,1705489912574,-14230.88,0.00024109,2]
[311893996,1705489912583,-585.41,0.00024109,2]
[311893997,1705489912593,-1948.18,0.00024109,2]
[311893998,1705489912603,-500.0,0.00024109,2]
[311893999,1705489912612,-807.32,0.00024109,2]
[311894000,1705489912622,-500.0,0.00024109,2]
[311894001,1705489912631,-1841.76,0.00024109,2]
[311894002,1705489912640,-541.68,0.00024109,2]
[311894003,1705489912649,-648.92,0.00024109,2]
[311894004,1705489912659,-1313.51,0.00024109,2]
[311894005,1705489912669,-7863.6,0.00024109,2]
[311894006,1705489912678,-669.79,0.00024109,2]
[311894007,1705489912688,-1235.43,0.00024109,2]
[311894008,1705489912697,-1875.02,0.00024109,2]
[311894009,1705489912707,-697.24,0.00024109,2]
[311894010,1705489912716,-886.27,0.00024109,2]
[311894011,1705489912975,-861.27,0.00024109,2]
[311894012,1705489912996,-863.63,0.00024109,2]
[311894013,1705489913005,-2235.54,0.00024109,2]
[311894014,1705489913014,-6074.67,0.00024109,2]
[311894015,1705489913023,-524.02,0.00024109,2]
[311894016,1705489913034,-500.0,0.00024109,2]
[311894017,1705489913043,-500.0,0.00024109,2]
[311894018,1705489913052,-4516.86,0.00024109,2]
[311894019,1705489913063,-500.0,0.00024109,2]
[311894020,1705489913073,-3841.76,0.00024109,2]
[311894021,1705489913082,-500.0,0.00024109,2]
[311894022,1705489913091,-974.16,0.00024109,2]
[311894023,1705489913100,-4150.83,0.00024109,2]
[311894024,1705489913110,-4448.34,0.00024109,2]
[311894025,1705489913119,-500.0,0.00024109,2]
[311894026,1705489913128,-500.0,0.00024109,2]
[311894027,1705489913138,-533.91,0.00024109,2]
[311894028,1705489913147,-500.0,0.00024109,2]
[311894029,1705489913156,-500.0,0.00024109,2]
[311894030,1705489913166,-566.02,0.00024109,2]
[311894031,1705489913175,-2935.1,0.00024109,2]
[311894032,1705489913184,-1309.04,0.00024109,2]
[311894033,1705489913194,-500.0,0.00024109,2]
[311894034,1705489913203,-1965.44,0.00024109,2]
[311894035,1705489913213,-992.22,0.00024109,2]
[311894036,1705489913222,-984.15,0.00024109,2]
[311894037,1705489913231,-500.0,0.00024109,2]
[311894038,1705489913241,-1696.71,0.00024109,2]
[311894039,1705489913250,-456.06169615,0.00024109,2]
[311894040,1705489913259,-32469.27,0.00024109,2]
[311894041,1705489913269,-573.08,0.00024109,2]
[311894042,1705489913278,-594.59,0.00024109,2]
[311894043,1705489913287,-661.33,0.00024109,2]
[311894044,1705489913297,-615.65,0.00024109,2]
[311894045,1705489913306,-649.27,0.00024109,2]
[311894046,1705489913316,-2575.9,0.00024109,2]
[311894047,1705489913326,-1939.24,0.00024109,2]
[311894048,1705489913335,-3511.42,0.00024109,2]
[311894049,1705489913344,-500.0,0.00024109,2]
[311894050,1705489913353,-500.0,0.00024109,2]
[311894051,1705489913366,-500.0,0.00024109,2]
[311894052,1705489913375,-500.0,0.00024109,2]
[311894053,1705489913384,-500.0,0.00024109,2]
[311894054,1705489913393,-1929.09,0.00024109,2]
[311894055,1705489913403,-1412.27,0.00024109,2]
[311894056,1705489913412,-500.0,0.00024109,2]
[311894057,1705489913421,-2389.77,0.00024109,2]
[311894058,1705489913430,-2475.33,0.00024109,2]
[311894059,1705489913441,-4575.47,0.00024109,2]
[311894060,1705489913450,-1653.65,0.00024109,2]
[311894061,1705489913459,-661.55,0.00024109,2]
[311894062,1705489913469,-514.38026697,0.00024109,2]
[311894063,1705489913478,-14816.63,0.00024109,2]
[311894064,1705489913488,-1732.77,0.00024109,2]
[311894065,1705489913497,-500.0,0.00024109,2]
[311894066,1705489913507,-834.9,0.00024109,2]
[311894067,1705489913516,-8016.45,0.00024109,2]
[311894068,1705489913525,-500.0,0.00024109,2]
[311894069,1705489913536,-1784.49,0.00024109,2]
[311894070,1705489913545,-1352.99,0.00024109,2]
[311894071,1705489913555,-558.85,0.00024109,2]
[311894072,1705489913565,-500.0,0.00024109,2]
[311894073,1705489913574,-678.67,0.00024109,2]
[311894074,1705489913583,-1038.1,0.00024109,2]
[311894075,1705489913592,-9036.89,0.00024109,2]
[311894076,1705489913602,-815.12,0.00024109,2]
[311894077,1705489913610,-500.0,0.00024109,2]
[311894078,1705489913624,-1774.09,0.00024109,2]
[311894079,1705489913633,-502.32,0.00024109,2]
[311894080,1705489913642,-2414.66,0.00024109,2]
[311894081,1705489913652,-5111.21,0.00024109,2]
[311894082,1705489913661,-500.0,0.00024109,2]
[311894083,1705489913671,-1734.88,0.00024109,2]
[311894084,1705489913680,-855.29,0.00024109,2]
[311894085,1705489913689,-500.0,0.00024109,2]
[311894086,1705489913699,-500.0,0.00024109,2]
[311894087,1705489913708,-2245.54,0.00024109,2]
[311894088,1705489913717,-500.0,0.00024109,2]
[311894089,1705489913726,-1744.59,0.00024109,2]
[311894090,1705489913735,-1274.36,0.00024109,2]
[311894091,1705489913745,-706.05,0.00024109,2]
[311894092,1705489913754,-1510.08,0.00024109,2]
[311894093,1705489913763,-887.83,0.00024109,2]
[311894094,1705489913773,-500.0,0.00024109,2]
[311894095,1705489913782,-1357.1,0.00024109,2]
[311894096,1705489913792,-1827.37,0.00024109,2]
[311894097,1705489913802,-1435.95,0.00024109,2]
[311894098,1705489913811,-584.24,0.00024109,2]
[311894099,1705489913821,-663.37,0.00024109,2]
[311894100,1705489913830,-779.77,0.00024109,2]
[311894101,1705489913840,-597.44,0.00024109,2]
[311894102,1705489913849,-4561.81,0.00024109,2]
[311894103,1705489913859,-3629.95,0.00024109,2]
[311894104,1705489913868,-500.0,0.00024109,2]
[311894105,1705489913877,-1883.37,0.00024109,2]
[311894106,1705489913887,-916.35,0.00024109,2]
[311894107,1705489913896,-992.47,0.00024109,2]
[311894108,1705489913905,-1639.63,0.00024109,2]
[311894109,1705489913915,-1741.77,0.00024109,2]
[311894110,1705489913924,-3959.88,0.00024109,2]
[311894111,1705489913934,-820.93,0.00024109,2]
[311894112,1705489913944,-7153.04,0.00024109,2]
[311894113,1705489913953,-500.0,0.00024109,2]
[311894114,1705489913962,-2360.61,0.00024109,2]
[311894115,1705489913972,-806.13,0.00024109,2]
[311894116,1705489913981,-782.9,0.00024109,2]
[311894117,1705489913990,-500.0,0.00024109,2]
[311894118,1705489914000,-1392.64,0.00024109,2]
[311894119,1705489914009,-507.5,0.00024109,2]
[311894120,1705489914019,-1083.43,0.00024109,2]
[311894121,1705489914028,-500.0,0.00024109,2]
[311894122,1705489914038,-778.97,0.00024109,2]
[311894123,1705489914049,-541.15224919,0.00024109,2]
[311894124,1705489914058,-909.26,0.00024109,2]
[311894125,1705489914068,-979.46,0.00024109,2]
[311894126,1705489914078,-3419.57,0.00024109,2]
[311894127,1705489914087,-1060.67,0.00024109,2]
[311894128,1705489914096,-1861.48,0.00024109,2]
[311894129,1705489914105,-3566.82,0.00024109,5]
[311894130,1705489914115,-1210.04,0.00024109,2]
[311894131,1705489914124,-2842.76,0.00024109,2]
[311894132,1705489914134,-1906.25,0.00024109,2]
[311894133,1705489914143,-1195.39,0.00024109,2]
[311894134,1705489914152,-5873.11,0.00024109,2]
[311894135,1705489914162,-500.0,0.00024109,2]
[311894136,1705489914171,-1159.83,0.00024109,2]
[311894137,1705489914180,-500.0,0.00024109,2]
[311894138,1705489914191,-1059.12,0.00024109,2]
[311894139,1705489914201,-500.0,0.00024109,2]
[311894140,1705489914210,-500.0,0.00024109,2]
[311894141,1705489914220,-3914.25,0.00024109,2]
[311894142,1705489914229,-1418.66,0.00024109,2]
[311894143,1705489914239,-2140.36,0.00024109,2]
[311894144,1705489914249,-1392.42,0.00024109,2]
[311894145,1705489914258,-500.0,0.00024109,2]
[311894146,1705489914268,-1713.01,0.00024109,2]
[311894147,1705489914278,-500.0,0.00024109,2]
[311894148,1705489914287,-778.99,0.00024109,2]
[311894149,1705489914297,-2146.35,0.00024109,2]
[311894150,1705489914306,-500.0,0.00024109,2]
[311894151,1705489914317,-2303.4,0.00024109,2]
[311894152,1705489914327,-500.0,0.00024109,2]
[311894153,1705489914336,-500.0,0.00024109,2]
[311894154,1705489914346,-2140.57,0.00024109,2]
[311894155,1705489914358,-500.0,0.00024109,2]
[311894156,1705489914367,-500.0,0.00024109,2]
[311894157,1705489914377,-1461.06,0.00024109,2]
[311894158,1705489914386,-1784.9,0.00024109,2]
[311894159,1705489914396,-539.85,0.00024109,2]
[311894160,1705489914407,-672.09,0.00024109,2]
[311894161,1705489914416,-1509.91,0.00024109,2]
[311894162,1705489914425,-27781.74,0.00024109,2]
[311894163,1705489914436,-881.13,0.00024109,2]
[311894164,1705489914446,-2094.77,0.00024109,2]
[311894165,1705489914455,-534.01,0.00024109,2]
[311894166,1705489914465,-1969.05,0.00024109,2]
[311894167,1705489914474,-4765.45,0.00024109,2]
[311894168,1705489914483,-591.22,0.00024109,2]
[311894169,1705489914492,-1724.25,0.00024109,2]
[311894170,1705489914501,-500.0,0.00024109,2]
[311894171,1705489914511,-2966.94,0.00024109,2]
[311894172,1705489914521,-500.0,0.00024109,2]
[311894173,1705489914530,-1073.7,0.00024109,2]
[311894174,1705489914539,-2716.01,0.00024109,2]
[311894175,1705489914549,-856.24,0.00024109,2]
[311894176,1705489914558,-5190.51,0.00024109,2]
[311894177,1705489914569,-1107.84,0.00024109,2]
[311894178,1705489914579,-500.0,0.00024109,2]
[311894179,1705489914589,-3130.06,0.00024109,2]
[311894180,1705489914599,-1373.46,0.00024109,2]
[311894181,1705489914609,-4976.8,0.00024109,2]
[311894182,1705489914619,-2577.68,0.00024109,2]
[311894183,1705489914629,-1821.72,0.00024109,2]
[311894184,1705489914639,-479.70482881,0.00024109,2]
[311894185,1705489914649,-2636.23,0.00024109,2]
[311894186,1705489914659,-363.96,0.00024109,2]